[Event "Titled Tuesday Blitz February 28 Late 2023"]
[White "Dahlgren, James Allen"]
[Black "Seletsky, Grigory"]
[WhiteFideId "22256873"]
[BlackFideId "14112191"]
[WhiteElo "2214"]
[BlackElo "2490"]
[Result "0-1"]
[Round "10"]
[TimeControl "180+2"]
[Date "2023.02.28"]
[WhiteClock "0:00:03"]
[BlackClock "0:00:26"]

1. e3 {[%clk 0:03:00]}  d5 {[%clk 0:02:58]} 2. c4 {[%clk 0:03:01]}  c6 {[%clk 0:02:57]} 3. Nc3 {[%clk 0:03:02]}  Nf6 {[%clk 0:02:56]} 4. d4 {[%clk 0:03:02]}  a6 {[%clk 0:02:52]} 5. Nf3 {[%clk 0:02:59]}  b5 {[%clk 0:02:52]} 6. cxd5 {[%clk 0:02:53]}  cxd5 {[%clk 0:02:50]} 7. Bd3 {[%clk 0:02:52]}  Bg4 {[%clk 0:02:46]} 8. Qb3 {[%clk 0:02:48]}  e6 {[%clk 0:02:46]} 9. a4 {[%clk 0:02:48]}  Bxf3 {[%clk 0:02:44]} 10. gxf3 {[%clk 0:02:46]}  b4 {[%clk 0:02:44]} 11. Ne2 {[%clk 0:02:43]}  a5 {[%clk 0:02:44]} 12. Bb5+ {[%clk 0:02:41]}  Nbd7 {[%clk 0:02:44]} 13. Bd2 {[%clk 0:02:22]}  Be7 {[%clk 0:02:44]} 14. Rg1 {[%clk 0:02:18]}  O-O {[%clk 0:02:41]} 15. O-O-O {[%clk 0:02:00]}  Nb6 {[%clk 0:02:38]} 16. Kb1 {[%clk 0:01:59]}  Rc8 {[%clk 0:02:38]} 17. Rc1 {[%clk 0:01:55]}  Qd6 {[%clk 0:02:38]} 18. Nf4 {[%clk 0:01:48]}  g6 {[%clk 0:02:35]} 19. Nd3 {[%clk 0:01:42]}  Qxh2 {[%clk 0:02:23]} 20. f4 {[%clk 0:01:23]}  Qh3 {[%clk 0:02:19]} 21. Rg3 {[%clk 0:01:16]}  Qf5 {[%clk 0:02:10]} 22. Ka2 {[%clk 0:01:01]}  Ne4 {[%clk 0:02:03]} 23. Rxc8 {[%clk 0:00:53]}  Rxc8 {[%clk 0:02:02]} 24. Be1 {[%clk 0:00:53]}  Nd6 {[%clk 0:01:56]} 25. Ne5 {[%clk 0:00:46]}  Ndc4 {[%clk 0:01:48]} 26. f3 {[%clk 0:00:39]}  Nxe5 {[%clk 0:01:41]} 27. fxe5 {[%clk 0:00:40]}  Qc2 {[%clk 0:01:38]} 28. Qxc2 {[%clk 0:00:37]}  Rxc2 {[%clk 0:01:37]} 29. Kb3 {[%clk 0:00:35]}  Rc7 {[%clk 0:01:37]} 30. Rg2 {[%clk 0:00:33]}  h5 {[%clk 0:01:35]} 31. Rc2 {[%clk 0:00:29]}  Rxc2 {[%clk 0:01:33]} 32. Kxc2 {[%clk 0:00:30]}  f6 {[%clk 0:01:31]} 33. Bh4 {[%clk 0:00:28]}  Kf7 {[%clk 0:01:30]} 34. exf6 {[%clk 0:00:26]}  Bxf6 {[%clk 0:01:29]} 35. Bg3 {[%clk 0:00:19]}  Bd8 {[%clk 0:01:29]} 36. b3 {[%clk 0:00:17]}  Nc8 {[%clk 0:01:28]} 37. Bf1 {[%clk 0:00:16]}  Ne7 {[%clk 0:01:26]} 38. Bh3 {[%clk 0:00:16]}  Nf5 {[%clk 0:01:22]} 39. Bf4 {[%clk 0:00:15]}  Ke7 {[%clk 0:01:16]} 40. Bg5+ {[%clk 0:00:11]}  Kd7 {[%clk 0:01:15]} 41. Bxd8 {[%clk 0:00:11]}  Kxd8 {[%clk 0:01:15]} 42. Kd3 {[%clk 0:00:10]}  Ke7 {[%clk 0:01:14]} 43. e4 {[%clk 0:00:07]}  Nd6 {[%clk 0:01:03]} 44. e5 {[%clk 0:00:07]}  Nf7 {[%clk 0:00:46]} 45. Ke3 {[%clk 0:00:07]}  g5 {[%clk 0:00:44]} 46. Bg2 {[%clk 0:00:07]}  Nh6 {[%clk 0:00:43]} 47. f4 {[%clk 0:00:07]}  Nf5+ {[%clk 0:00:43]} 48. Kd3 {[%clk 0:00:07]}  g4 {[%clk 0:00:43]} 49. Bf1 {[%clk 0:00:05]}  h4 {[%clk 0:00:43]} 50. Be2 {[%clk 0:00:04]}  Nh6 {[%clk 0:00:30]} 51. Ke3 {[%clk 0:00:04]}  Kf7 {[%clk 0:00:30]} 52. Kf2 {[%clk 0:00:03]}  Kg6 {[%clk 0:00:29]} 53. Kg2 {[%clk 0:00:03]}  Kf5 {[%clk 0:00:26]} 0-1


[Site "https://www.chess.com"]

[Event "Titled Tuesday Blitz February 28 Late 2023"]
[White "Dorato, Adriano"]
[Black "Sreyas Payyappat"]
[WhiteFideId "2802894"]
[BlackFideId "46674969"]
[WhiteElo "1709"]
[BlackElo "2083"]
[Result "0-1"]
[Round "10"]
[TimeControl "180+2"]
[Date "2023.02.28"]
[WhiteClock "0:00:06"]
[BlackClock "0:00:50"]

1. d4 {[%clk 0:03:00]}  Nf6 {[%clk 0:02:59]} 2. Nf3 {[%clk 0:02:58]}  c5 {[%clk 0:03:00]} 3. e3 {[%clk 0:02:58]}  e6 {[%clk 0:02:59]} 4. Bd3 {[%clk 0:02:57]}  Nc6 {[%clk 0:02:58]} 5. c3 {[%clk 0:02:56]}  b6 {[%clk 0:02:55]} 6. Nbd2 {[%clk 0:02:56]}  Bb7 {[%clk 0:02:56]} 7. e4 {[%clk 0:02:56]}  d5 {[%clk 0:02:50]} 8. e5 {[%clk 0:02:56]}  Nd7 {[%clk 0:02:50]} 9. O-O {[%clk 0:02:54]}  g6 {[%clk 0:02:49]} 10. Qe2 {[%clk 0:02:50]}  Bg7 {[%clk 0:02:49]} 11. Rd1 {[%clk 0:02:45]}  O-O {[%clk 0:02:49]} 12. Nf1 {[%clk 0:02:44]}  Qc7 {[%clk 0:02:46]} 13. Bf4 {[%clk 0:02:39]}  Rae8 {[%clk 0:02:35]} 14. Qd2 {[%clk 0:02:29]}  Qd8 {[%clk 0:02:31]} 15. Bh6 {[%clk 0:02:23]}  f6 {[%clk 0:02:29]} 16. Bxg7 {[%clk 0:02:23]}  Kxg7 {[%clk 0:02:30]} 17. exf6+ {[%clk 0:02:18]}  Qxf6 {[%clk 0:02:30]} 18. Bb5 {[%clk 0:02:13]}  a6 {[%clk 0:02:22]} 19. Bxc6 {[%clk 0:02:06]}  Bxc6 {[%clk 0:02:23]} 20. Ng3 {[%clk 0:01:53]}  e5 {[%clk 0:02:19]} 21. dxe5 {[%clk 0:01:50]}  Nxe5 {[%clk 0:02:20]} 22. Nxe5 {[%clk 0:01:41]}  Rxe5 {[%clk 0:02:19]} 23. Re1 {[%clk 0:01:40]}  Rfe8 {[%clk 0:02:17]} 24. Rxe5 {[%clk 0:01:31]}  Qxe5 {[%clk 0:02:18]} 25. h3 {[%clk 0:01:28]}  d4 {[%clk 0:02:11]} 26. cxd4 {[%clk 0:01:26]}  cxd4 {[%clk 0:02:12]} 27. Rd1 {[%clk 0:01:25]}  Rd8 {[%clk 0:02:06]} 28. Re1 {[%clk 0:01:16]}  Qf6 {[%clk 0:02:01]} 29. Ne4 {[%clk 0:00:57]}  Bxe4 {[%clk 0:01:55]} 30. Rxe4 {[%clk 0:00:56]}  d3 {[%clk 0:01:56]} 31. Re3 {[%clk 0:00:53]}  Qd4 {[%clk 0:01:43]} 32. Kf1 {[%clk 0:00:52]}  Kg8 {[%clk 0:01:38]} 33. Ke1 {[%clk 0:00:46]}  Qc4 {[%clk 0:01:37]} 34. a3 {[%clk 0:00:19]}  Qc2 {[%clk 0:01:28]} 35. f3 {[%clk 0:00:13]}  Kf7 {[%clk 0:01:02]} 36. g4 {[%clk 0:00:09]}  g5 {[%clk 0:00:51]} 37. Qb4 {[%clk 0:00:06]}  d2+ {[%clk 0:00:50]} 0-1


[Site "https://www.chess.com"]

[Event "Titled Tuesday Blitz February 28 Late 2023"]
[White "Matsuura, Frederico"]
[Black "Gubajdullin, Alexei"]
[WhiteFideId "2107848"]
[BlackFideId "4141202"]
[WhiteElo "2302"]
[BlackElo "2285"]
[Result "1-0"]
[Round "10"]
[TimeControl "180+2"]
[Date "2023.02.28"]
[WhiteClock "0:01:14"]
[BlackClock "0:02:18"]

1. d4 {[%clk 0:03:00]}  Nf6 {[%clk 0:02:58]} 2. Bg5 {[%clk 0:03:00]}  g6 {[%clk 0:02:59]} 3. Bxf6 {[%clk 0:02:59]}  exf6 {[%clk 0:02:59]} 4. e3 {[%clk 0:02:59]}  f5 {[%clk 0:03:00]} 5. g3 {[%clk 0:03:00]}  Bg7 {[%clk 0:03:00]} 6. Bg2 {[%clk 0:03:00]}  O-O {[%clk 0:03:01]} 7. Ne2 {[%clk 0:03:00]}  d6 {[%clk 0:03:02]} 8. O-O {[%clk 0:03:00]}  Nd7 {[%clk 0:03:03]} 9. c4 {[%clk 0:03:00]}  Nf6 {[%clk 0:03:04]} 10. Nbc3 {[%clk 0:03:00]}  Re8 {[%clk 0:03:04]} 11. Qc2 {[%clk 0:02:54]}  c6 {[%clk 0:03:04]} 12. b4 {[%clk 0:02:54]}  Qe7 {[%clk 0:03:04]} 13. b5 {[%clk 0:02:51]}  Ne4 {[%clk 0:03:04]} 14. Rab1 {[%clk 0:02:45]}  Bd7 {[%clk 0:03:03]} 15. bxc6 {[%clk 0:02:38]}  bxc6 {[%clk 0:02:59]} 16. Rb7 {[%clk 0:02:38]}  Nxc3 {[%clk 0:02:39]} 17. Nxc3 {[%clk 0:02:35]}  Qd8 {[%clk 0:02:40]} 18. Rfb1 {[%clk 0:02:30]}  g5 {[%clk 0:02:39]} 19. Qa4 {[%clk 0:02:00]}  f4 {[%clk 0:02:32]} 20. Rxd7 {[%clk 0:01:45]}  Qxd7 {[%clk 0:02:29]} 21. Bxc6 {[%clk 0:01:45]}  Qf5 {[%clk 0:02:28]} 22. Bxa8 {[%clk 0:01:36]}  fxe3 {[%clk 0:02:26]} 23. Qxe8+ {[%clk 0:01:34]}  Bf8 {[%clk 0:02:23]} 24. Qxe3 {[%clk 0:01:31]}  h5 {[%clk 0:02:21]} 25. Be4 {[%clk 0:01:30]}  Qf6 {[%clk 0:02:21]} 26. Nd5 {[%clk 0:01:29]}  Qd8 {[%clk 0:02:21]} 27. Qf3 {[%clk 0:01:26]}  g4 {[%clk 0:02:19]} 28. Nf6+ {[%clk 0:01:19]}  Kh8 {[%clk 0:02:17]} 29. Qf5 {[%clk 0:01:19]}  Kg7 {[%clk 0:02:17]} 30. Nxh5+ {[%clk 0:01:18]}  Kh6 {[%clk 0:02:18]} 31. Qxf7 {[%clk 0:01:14]} 1-0


[Site "https://www.chess.com"]

[Event "Titled Tuesday Blitz February 28 Late 2023"]
[White "Sarkar, Justin"]
[Black "Zampronha, Wladimir Camilo"]
[WhiteFideId "2010011"]
[BlackFideId "2103087"]
[WhiteElo "2189"]
[BlackElo "2176"]
[Result "1-0"]
[Round "10"]
[TimeControl "180+2"]
[Date "2023.02.28"]
[WhiteClock "0:00:04"]
[BlackClock "0:00:02"]

1. e4 {[%clk 0:02:54]}  c5 {[%clk 0:03:00]} 2. Nf3 {[%clk 0:02:54]}  e6 {[%clk 0:03:01]} 3. d4 {[%clk 0:02:53]}  cxd4 {[%clk 0:03:02]} 4. Nxd4 {[%clk 0:02:54]}  Nc6 {[%clk 0:03:02]} 5. Nc3 {[%clk 0:02:50]}  Qc7 {[%clk 0:03:03]} 6. Be3 {[%clk 0:02:39]}  a6 {[%clk 0:03:03]} 7. f4 {[%clk 0:02:36]}  b5 {[%clk 0:02:53]} 8. Nxc6 {[%clk 0:02:30]}  Qxc6 {[%clk 0:02:49]} 9. Bd3 {[%clk 0:02:29]}  Bb7 {[%clk 0:02:48]} 10. O-O {[%clk 0:02:17]}  Nf6 {[%clk 0:02:48]} 11. Qe2 {[%clk 0:02:12]}  Bc5 {[%clk 0:02:48]} 12. Bxc5 {[%clk 0:02:03]}  Qxc5+ {[%clk 0:02:48]} 13. Kh1 {[%clk 0:02:03]}  b4 {[%clk 0:02:24]} 14. Na4 {[%clk 0:01:37]}  Qc6 {[%clk 0:02:23]} 15. e5 {[%clk 0:01:21]}  Qxa4 {[%clk 0:01:19]} 16. exf6 {[%clk 0:01:19]}  gxf6 {[%clk 0:01:20]} 17. a3 {[%clk 0:01:18]}  O-O {[%clk 0:01:04]} 18. Qh5 {[%clk 0:00:31]}  f5 {[%clk 0:00:59]} 19. axb4 {[%clk 0:00:12]}  Qxb4 {[%clk 0:00:54]} 20. Bxf5 {[%clk 0:00:10]}  exf5 {[%clk 0:00:45]} 21. Qg5+ {[%clk 0:00:10]}  Kh8 {[%clk 0:00:45]} 22. Qf6+ {[%clk 0:00:09]}  Kg8 {[%clk 0:00:45]} 23. Qg5+ {[%clk 0:00:08]}  Kh8 {[%clk 0:00:44]} 24. Qf6+ {[%clk 0:00:08]}  Kg8 {[%clk 0:00:45]} 25. Ra3 {[%clk 0:00:07]}  Qxa3 {[%clk 0:00:14]} 26. Qg5+ {[%clk 0:00:08]}  Kh8 {[%clk 0:00:12]} 27. Qf6+ {[%clk 0:00:08]}  Kg8 {[%clk 0:00:12]} 28. bxa3 {[%clk 0:00:09]}  Be4 {[%clk 0:00:11]} 29. Re1 {[%clk 0:00:07]}  Rab8 {[%clk 0:00:09]} 30. h3 {[%clk 0:00:06]}  Rb2 {[%clk 0:00:09]} 31. Re3 {[%clk 0:00:05]}  Rfb8 {[%clk 0:00:03]} 32. Rg3+ {[%clk 0:00:04]}  Kf8 {[%clk 0:00:04]} 33. Qh8+ {[%clk 0:00:04]}  Ke7 {[%clk 0:00:04]} 34. Qe5+ {[%clk 0:00:04]}  Kf8 {[%clk 0:00:02]} 35. Qd6+ {[%clk 0:00:04]}  Ke8 {[%clk 0:00:02]} 36. Rg8# {[%clk 0:00:04]} 1-0


[Site "https://www.chess.com"]

[Event "Titled Tuesday Blitz February 28 Late 2023"]
[White "Huang, Alex"]
[Black "Figorito, Nick"]
[WhiteFideId "4302508"]
[BlackFideId "30923689"]
[WhiteElo "2029"]
[BlackElo "2368"]
[Result "0-1"]
[Round "10"]
[TimeControl "180+2"]
[Date "2023.02.28"]
[WhiteClock "0:00:09"]
[BlackClock "0:00:44"]

1. d4 {[%clk 0:03:00]}  Nf6 {[%clk 0:02:59]} 2. Nf3 {[%clk 0:03:00]}  g6 {[%clk 0:02:58]} 3. Bf4 {[%clk 0:03:00]}  Bg7 {[%clk 0:02:58]} 4. c3 {[%clk 0:03:00]}  O-O {[%clk 0:02:58]} 5. Nbd2 {[%clk 0:03:01]}  d5 {[%clk 0:02:59]} 6. e3 {[%clk 0:02:55]}  a5 {[%clk 0:02:58]} 7. h3 {[%clk 0:02:48]}  a4 {[%clk 0:02:57]} 8. a3 {[%clk 0:02:47]}  c6 {[%clk 0:02:51]} 9. Be2 {[%clk 0:02:45]}  Be6 {[%clk 0:02:45]} 10. O-O {[%clk 0:02:40]}  b5 {[%clk 0:02:45]} 11. Re1 {[%clk 0:02:23]}  Bf5 {[%clk 0:02:45]} 12. Nh4 {[%clk 0:02:22]}  Be6 {[%clk 0:02:43]} 13. Bd3 {[%clk 0:02:14]}  Nbd7 {[%clk 0:02:40]} 14. e4 {[%clk 0:02:09]}  dxe4 {[%clk 0:02:40]} 15. Nxe4 {[%clk 0:02:08]}  Nxe4 {[%clk 0:02:33]} 16. Bxe4 {[%clk 0:02:06]}  Bd5 {[%clk 0:02:30]} 17. Bxd5 {[%clk 0:01:32]}  cxd5 {[%clk 0:02:31]} 18. Qd3 {[%clk 0:01:32]}  e6 {[%clk 0:02:21]} 19. Nf3 {[%clk 0:01:27]}  Qb6 {[%clk 0:02:11]} 20. h4 {[%clk 0:01:23]}  h5 {[%clk 0:02:10]} 21. Bg5 {[%clk 0:01:08]}  Qc6 {[%clk 0:02:07]} 22. Re3 {[%clk 0:01:05]}  Qc4 {[%clk 0:02:07]} 23. Qd1 {[%clk 0:00:53]}  Rfe8 {[%clk 0:01:51]} 24. Qe1 {[%clk 0:00:47]}  Qb3 {[%clk 0:01:48]} 25. Qd2 {[%clk 0:00:44]}  Nb6 {[%clk 0:01:47]} 26. Re2 {[%clk 0:00:34]}  Nd7 {[%clk 0:01:24]} 27. Rae1 {[%clk 0:00:32]}  Qc4 {[%clk 0:01:23]} 28. Qf4 {[%clk 0:00:25]}  Rac8 {[%clk 0:01:19]} 29. Qd6 {[%clk 0:00:25]}  Qc7 {[%clk 0:01:15]} 30. Qxc7 {[%clk 0:00:24]}  Rxc7 {[%clk 0:01:16]} 31. Bf4 {[%clk 0:00:22]}  Rcc8 {[%clk 0:01:15]} 32. Bd6 {[%clk 0:00:22]}  Nb6 {[%clk 0:01:15]} 33. Bc5 {[%clk 0:00:22]}  Nc4 {[%clk 0:01:15]} 34. Rc2 {[%clk 0:00:19]}  e5 {[%clk 0:01:14]} 35. dxe5 {[%clk 0:00:19]}  Rxc5 {[%clk 0:01:13]} 36. e6 {[%clk 0:00:14]}  Rxe6 {[%clk 0:01:11]} 37. Rd1 {[%clk 0:00:12]}  Rd6 {[%clk 0:00:56]} 38. g3 {[%clk 0:00:12]}  Rc8 {[%clk 0:00:56]} 39. Kg2 {[%clk 0:00:12]}  Rcd8 {[%clk 0:00:56]} 40. Nd4 {[%clk 0:00:13]}  Bxd4 {[%clk 0:00:56]} 41. Rxd4 {[%clk 0:00:14]}  Re6 {[%clk 0:00:52]} 42. Kf1 {[%clk 0:00:10]}  Re4 {[%clk 0:00:51]} 43. Rd1 {[%clk 0:00:10]}  Kg7 {[%clk 0:00:49]} 44. Kg2 {[%clk 0:00:08]}  Kf6 {[%clk 0:00:49]} 45. Kf3 {[%clk 0:00:08]}  Ke6 {[%clk 0:00:45]} 46. Rd3 {[%clk 0:00:09]}  Ne5+ {[%clk 0:00:44]} 0-1


[Site "https://www.chess.com"]

[Event "Titled Tuesday Blitz February 28 Late 2023"]
[White "Estrada Nieto, Julian"]
[Black "Sailer, Mike"]
[WhiteFideId "5101018"]
[BlackFideId "2012901"]
[WhiteElo "2176"]
[BlackElo "2109"]
[Result "1-0"]
[Round "10"]
[TimeControl "180+2"]
[Date "2023.02.28"]
[WhiteClock "0:01:04"]
[BlackClock "0:00:08"]

1. e4 {[%clk 0:03:00]}  d5 {[%clk 0:02:58]} 2. exd5 {[%clk 0:03:00]}  Qxd5 {[%clk 0:02:58]} 3. Nc3 {[%clk 0:03:00]}  Qd6 {[%clk 0:02:58]} 4. d4 {[%clk 0:03:01]}  Nf6 {[%clk 0:02:58]} 5. Nf3 {[%clk 0:03:02]}  c6 {[%clk 0:02:58]} 6. g3 {[%clk 0:03:01]}  Bf5 {[%clk 0:02:56]} 7. Bf4 {[%clk 0:03:00]}  Qb4 {[%clk 0:02:48]} 8. Qd2 {[%clk 0:02:11]}  e6 {[%clk 0:02:45]} 9. Bg2 {[%clk 0:02:11]}  Nbd7 {[%clk 0:02:36]} 10. O-O {[%clk 0:02:05]}  Be7 {[%clk 0:02:31]} 11. Nh4 {[%clk 0:02:05]}  Bg4 {[%clk 0:02:21]} 12. h3 {[%clk 0:02:04]}  Bh5 {[%clk 0:02:21]} 13. g4 {[%clk 0:02:04]}  Bg6 {[%clk 0:02:16]} 14. Nxg6 {[%clk 0:02:04]}  hxg6 {[%clk 0:02:16]} 15. a3 {[%clk 0:02:04]}  Qa5 {[%clk 0:02:09]} 16. b4 {[%clk 0:02:04]}  Qd8 {[%clk 0:02:08]} 17. b5 {[%clk 0:02:02]}  Nd5 {[%clk 0:02:06]} 18. bxc6 {[%clk 0:02:00]}  bxc6 {[%clk 0:02:06]} 19. Bg3 {[%clk 0:01:53]}  Qa5 {[%clk 0:01:54]} 20. Ne4 {[%clk 0:01:53]}  Qxd2 {[%clk 0:01:53]} 21. Nxd2 {[%clk 0:01:53]}  N7b6 {[%clk 0:01:44]} 22. c4 {[%clk 0:01:52]}  Nc3 {[%clk 0:01:42]} 23. Bxc6+ {[%clk 0:01:52]}  Kf8 {[%clk 0:01:39]} 24. c5 {[%clk 0:01:36]}  Ne2+ {[%clk 0:01:26]} 25. Kg2 {[%clk 0:01:36]}  Nxd4 {[%clk 0:01:27]} 26. Bxa8 {[%clk 0:01:34]}  Nxa8 {[%clk 0:01:27]} 27. Rfc1 {[%clk 0:01:28]}  Nc6 {[%clk 0:01:20]} 28. Rab1 {[%clk 0:01:25]}  Ke8 {[%clk 0:00:58]} 29. Ne4 {[%clk 0:01:22]}  f5 {[%clk 0:00:49]} 30. Nd6+ {[%clk 0:01:21]}  Bxd6 {[%clk 0:00:48]} 31. cxd6 {[%clk 0:01:20]}  Nd8 {[%clk 0:00:33]} 32. Rb8 {[%clk 0:01:11]}  Nb6 {[%clk 0:00:33]} 33. Rc7 {[%clk 0:01:10]}  Nd7 {[%clk 0:00:21]} 34. Ra8 {[%clk 0:01:07]}  e5 {[%clk 0:00:09]} 35. Bxe5 {[%clk 0:01:04]}  Nxe5 {[%clk 0:00:09]} 36. Re7+ {[%clk 0:01:04]}  Kf8 {[%clk 0:00:08]} 37. Rxd8# {[%clk 0:01:04]} 1-0


[Site "https://www.chess.com"]

[Event "Titled Tuesday Blitz February 28 Late 2023"]
[White "Mikhalsky, Vladimir"]
[Black "Comas Fabrego, Lluis"]
[WhiteFideId "14144352"]
[BlackFideId "2200325"]
[WhiteElo "2272"]
[BlackElo "2523"]
[Result "1-0"]
[Round "10"]
[TimeControl "180+2"]
[Date "2023.02.28"]
[WhiteClock "0:01:07"]
[BlackClock "0:00:12"]

1. d4 {[%clk 0:02:54]}  Nf6 {[%clk 0:02:59]} 2. Nc3 {[%clk 0:02:51]}  d5 {[%clk 0:02:58]} 3. Bg5 {[%clk 0:02:51]}  Nbd7 {[%clk 0:02:53]} 4. Qd2 {[%clk 0:02:50]}  c5 {[%clk 0:02:44]} 5. O-O-O {[%clk 0:02:49]}  cxd4 {[%clk 0:02:43]} 6. Qxd4 {[%clk 0:02:48]}  e6 {[%clk 0:02:43]} 7. e4 {[%clk 0:02:46]}  Be7 {[%clk 0:02:42]} 8. exd5 {[%clk 0:02:45]}  Nxd5 {[%clk 0:01:37]} 9. Bxe7 {[%clk 0:02:40]}  Qxe7 {[%clk 0:01:31]} 10. Nxd5 {[%clk 0:02:34]}  exd5 {[%clk 0:01:30]} 11. Qxg7 {[%clk 0:02:33]}  Qf6 {[%clk 0:01:30]} 12. Qg3 {[%clk 0:02:18]}  Nb6 {[%clk 0:01:27]} 13. Bb5+ {[%clk 0:02:15]}  Kf8 {[%clk 0:01:26]} 14. Nf3 {[%clk 0:01:53]}  Rg8 {[%clk 0:01:26]} 15. Qc7 {[%clk 0:01:46]}  Rxg2 {[%clk 0:01:17]} 16. Ne5 {[%clk 0:01:41]}  Qxf2 {[%clk 0:01:07]} 17. Rhf1 {[%clk 0:01:28]}  Qe3+ {[%clk 0:00:57]} 18. Kb1 {[%clk 0:01:28]}  Be6 {[%clk 0:00:30]} 19. Nxf7 {[%clk 0:01:27]}  Kg8 {[%clk 0:00:25]} 20. Nd8 {[%clk 0:01:18]}  Rc8 {[%clk 0:00:12]} 21. Qe7 {[%clk 0:01:10]}  Rxd8 {[%clk 0:00:12]} 22. Qxd8+ {[%clk 0:01:08]}  Kg7 {[%clk 0:00:12]} 23. Qf6+ {[%clk 0:01:07]} 1-0


[Site "https://www.chess.com"]

[Event "Titled Tuesday Blitz February 28 Late 2023"]
[White "Vaglio Munoz, Jaime"]
[Black "Leonte, Sebastian-Marian"]
[WhiteFideId "6500145"]
[BlackFideId "1268767"]
[WhiteElo "2199"]
[BlackElo "2265"]
[Result "0-1"]
[Round "10"]
[TimeControl "180+2"]
[Date "2023.02.28"]
[WhiteClock "0:00:15"]
[BlackClock "0:00:15"]

1. e4 {[%clk 0:03:00]}  e5 {[%clk 0:02:59]} 2. f4 {[%clk 0:02:59]}  exf4 {[%clk 0:02:56]} 3. d4 {[%clk 0:02:59]}  Qh4+ {[%clk 0:02:45]} 4. Ke2 {[%clk 0:02:58]}  d5 {[%clk 0:02:41]} 5. Nf3 {[%clk 0:02:58]}  Qd8 {[%clk 0:02:37]} 6. exd5 {[%clk 0:02:57]}  Nf6 {[%clk 0:02:36]} 7. c4 {[%clk 0:02:56]}  b5 {[%clk 0:02:34]} 8. Bxf4 {[%clk 0:02:44]}  bxc4 {[%clk 0:02:26]} 9. Kf2 {[%clk 0:02:41]}  Nxd5 {[%clk 0:02:02]} 10. Be5 {[%clk 0:02:40]}  Nd7 {[%clk 0:01:50]} 11. Bxc4 {[%clk 0:02:37]}  N5b6 {[%clk 0:01:42]} 12. Bb3 {[%clk 0:02:30]}  Nxe5 {[%clk 0:01:27]} 13. Nxe5 {[%clk 0:02:29]}  Qf6+ {[%clk 0:01:24]} 14. Kg1 {[%clk 0:02:26]}  Be6 {[%clk 0:01:23]} 15. Ba4+ {[%clk 0:02:19]}  Nd7 {[%clk 0:01:15]} 16. Nc3 {[%clk 0:02:16]}  Bd6 {[%clk 0:01:11]} 17. Ne4 {[%clk 0:02:03]}  Qf4 {[%clk 0:01:00]} 18. Nxd7 {[%clk 0:01:47]}  Bxd7 {[%clk 0:00:57]} 19. Bxd7+ {[%clk 0:01:46]}  Kxd7 {[%clk 0:00:56]} 20. Qa4+ {[%clk 0:01:30]}  c6 {[%clk 0:00:51]} 21. d5 {[%clk 0:01:16]}  Rhc8 {[%clk 0:00:44]} 22. dxc6+ {[%clk 0:01:03]}  Ke7 {[%clk 0:00:43]} 23. Re1 {[%clk 0:01:00]}  Kf8 {[%clk 0:00:41]} 24. g3 {[%clk 0:00:50]}  Qe5 {[%clk 0:00:35]} 25. Kg2 {[%clk 0:00:46]}  Qxb2+ {[%clk 0:00:32]} 26. Nf2 {[%clk 0:00:43]}  Bc5 {[%clk 0:00:28]} 27. Rhf1 {[%clk 0:00:41]}  Re8 {[%clk 0:00:25]} 28. Rb1 {[%clk 0:00:35]}  Qd2 {[%clk 0:00:17]} 29. c7 {[%clk 0:00:24]}  Kg8 {[%clk 0:00:14]} 30. Qf4 {[%clk 0:00:18]}  Qxf4 {[%clk 0:00:13]} 31. gxf4 {[%clk 0:00:19]}  Rac8 {[%clk 0:00:10]} 32. Rb7 {[%clk 0:00:19]}  Bb6 {[%clk 0:00:10]} 33. Rc1 {[%clk 0:00:19]}  Re7 {[%clk 0:00:10]} 34. Ne4 {[%clk 0:00:19]}  Kf8 {[%clk 0:00:06]} 35. Nd6 {[%clk 0:00:19]}  Rexc7 {[%clk 0:00:05]} 36. Rcxc7 {[%clk 0:00:18]}  Rxc7 {[%clk 0:00:06]} 37. Rb8+ {[%clk 0:00:18]}  Ke7 {[%clk 0:00:06]} 38. Nf5+ {[%clk 0:00:18]}  Kf6 {[%clk 0:00:07]} 39. Ng3 {[%clk 0:00:17]}  Rc2+ {[%clk 0:00:07]} 40. Kf3 {[%clk 0:00:17]}  Rxa2 {[%clk 0:00:08]} 41. Ne4+ {[%clk 0:00:17]}  Kg6 {[%clk 0:00:08]} 42. h4 {[%clk 0:00:16]}  Ra3+ {[%clk 0:00:09]} 43. Kg2 {[%clk 0:00:14]}  Kf5 {[%clk 0:00:09]} 44. Ng3+ {[%clk 0:00:13]}  Kg4 {[%clk 0:00:09]} 45. Ne2 {[%clk 0:00:13]}  Ra2 {[%clk 0:00:09]} 46. Kf1 {[%clk 0:00:13]}  Ra1+ {[%clk 0:00:10]} 47. Kg2 {[%clk 0:00:12]}  Ra2 {[%clk 0:00:10]} 48. Kf1 {[%clk 0:00:12]}  Kxh4 {[%clk 0:00:09]} 49. Re8 {[%clk 0:00:11]}  Kg4 {[%clk 0:00:08]} 50. Re4 {[%clk 0:00:09]}  Kf3 {[%clk 0:00:08]} 51. Rc4 {[%clk 0:00:09]}  Ra1+ {[%clk 0:00:07]} 52. Nc1 {[%clk 0:00:09]}  Be3 {[%clk 0:00:06]} 53. Ke1 {[%clk 0:00:08]}  Rxc1+ {[%clk 0:00:07]} 54. Rxc1 {[%clk 0:00:06]}  Bxc1 {[%clk 0:00:08]} 55. f5 {[%clk 0:00:07]}  Bg5 {[%clk 0:00:08]} 56. f6 {[%clk 0:00:08]}  Bxf6 {[%clk 0:00:08]} 57. Kd2 {[%clk 0:00:08]}  a5 {[%clk 0:00:09]} 58. Kd3 {[%clk 0:00:09]}  a4 {[%clk 0:00:10]} 59. Kc4 {[%clk 0:00:10]}  a3 {[%clk 0:00:11]} 60. Kb3 {[%clk 0:00:10]}  a2 {[%clk 0:00:12]} 61. Kxa2 {[%clk 0:00:11]}  h5 {[%clk 0:00:12]} 62. Kb3 {[%clk 0:00:12]}  h4 {[%clk 0:00:12]} 63. Kc2 {[%clk 0:00:13]}  h3 {[%clk 0:00:13]} 64. Kd1 {[%clk 0:00:13]}  h2 {[%clk 0:00:14]} 65. Ke1 {[%clk 0:00:14]}  h1=Q+ {[%clk 0:00:15]} 66. Kd2 {[%clk 0:00:14]}  Qg2+ {[%clk 0:00:15]} 67. Kd3 {[%clk 0:00:15]}  Qe2# {[%clk 0:00:15]} 0-1


[Site "https://www.chess.com"]

[Event "Titled Tuesday Blitz February 28 Late 2023"]
[White "Gatterer, Florian"]
[Black "Simonovic, Miroslav"]
[WhiteFideId "811688"]
[BlackFideId "919152"]
[WhiteElo "2221"]
[BlackElo "2057"]
[Result "1/2-1/2"]
[Round "10"]
[TimeControl "180+2"]
[Date "2023.02.28"]
[WhiteClock "0:02:15"]
[BlackClock "0:02:54"]

1. e4 {[%clk 0:03:00]}  c5 {[%clk 0:03:00]} 2. d4 {[%clk 0:02:55]}  cxd4 {[%clk 0:03:00]} 3. c3 {[%clk 0:02:56]}  dxc3 {[%clk 0:03:01]} 4. Nxc3 {[%clk 0:02:56]}  Nc6 {[%clk 0:03:02]} 5. Bc4 {[%clk 0:02:56]}  d6 {[%clk 0:03:02]} 6. Nf3 {[%clk 0:02:56]}  e6 {[%clk 0:03:03]} 7. O-O {[%clk 0:02:54]}  Be7 {[%clk 0:03:03]} 8. Qe2 {[%clk 0:02:54]}  Nf6 {[%clk 0:03:04]} 9. Rd1 {[%clk 0:02:52]}  Qa5 {[%clk 0:03:04]} 10. Bf4 {[%clk 0:02:48]}  O-O {[%clk 0:03:01]} 11. Bxd6 {[%clk 0:02:43]}  Bxd6 {[%clk 0:03:02]} 12. Rxd6 {[%clk 0:02:41]}  Ne5 {[%clk 0:03:02]} 13. Nxe5 {[%clk 0:02:34]}  Qxe5 {[%clk 0:03:03]} 14. Rd2 {[%clk 0:02:30]}  a6 {[%clk 0:03:02]} 15. a4 {[%clk 0:02:20]}  Bd7 {[%clk 0:02:59]} 16. Rad1 {[%clk 0:02:18]}  Bc6 {[%clk 0:03:00]} 17. f3 {[%clk 0:02:18]}  Rac8 {[%clk 0:02:54]} 18. Bb3 {[%clk 0:02:15]} 1/2-1/2


[Site "https://www.chess.com"]